fUSD/lending_fUSD_20240214
["ID","MTS","AMOUNT","RATE_DAILY","PERIOD"]
[314008635,1707923478782,-500.0,0.00037534,2]
[314008636,1707923478791,-500.0,0.00037534,2]
[314008637,1707923478800,-45639.2,0.00037534,2]
[314008638,1707923478810,-309.03354071,0.00037534,2]
[314008639,1707923478819,-5389.09,0.00037534,2]
[314008640,1707923478828,-1240.03,0.00037534,2]
[314008641,1707923478837,-614.61649032,0.00037534,2]
[314008642,1707923478846,-4636.49,0.00037534,2]
[314008643,1707923478856,-500.0,0.00037534,2]
[314008644,1707923478867,-558.68,0.00037534,2]
[314008645,1707923478880,-500.0,0.00037534,2]
[314008646,1707923478890,-1060.11,0.00037534,2]
[314008647,1707923478900,-500.0,0.00037534,2]
[314008648,1707923478910,-5227.83,0.00037534,2]
[314008649,1707923478920,-294.90443082,0.00037534,2]
[314008650,1707923478929,-525.56,0.00037534,2]
[314008651,1707923478939,-2461.93,0.00037534,2]
[314008652,1707923478948,-682.43,0.00037534,2]
[314008653,1707923478958,-1031.1,0.00037534,2]
[314008654,1707923478967,-3757.3,0.00037534,2]
[314008655,1707923478976,-741.06,0.00037534,2]
[314008656,1707923478989,-777.41,0.00037534,2]
[314008657,1707923478999,-500.0,0.00037534,2]
[314008658,1707923479009,-838.79,0.00037534,2]
[314008659,1707923479019,-1479.6,0.00037534,2]
[314008660,1707923479028,-866.09,0.00037534,2]
[314008661,1707923479038,-8419.92,0.00037534,2]
[314008662,1707923479049,-3315.92,0.00037534,2]
[314008663,1707923479059,-500.0,0.00037534,2]
[314008664,1707923479069,-500.0,0.00037534,2]
[314008665,1707923479079,-1669.6,0.00037534,2]
[314008666,1707923479088,-500.0,0.00037534,2]
[314008667,1707923479097,-500.0,0.00037534,2]
[314008668,1707923479107,-500.0,0.00037534,2]
[314008669,1707923479116,-1425.19,0.00037534,2]
[314008670,1707923479126,-500.0,0.00037534,2]
[314008671,1707923479136,-941.92,0.00037534,2]
[314008672,1707923479145,-500.0,0.00037534,2]
[314008673,1707923479155,-1068.3,0.00037534,2]
[314008674,1707923479164,-978.39,0.00037534,2]
[314008675,1707923479174,-1743.01,0.00037534,2]
[314008676,1707923479183,-500.0,0.00037534,2]
[314008677,1707923479193,-527.53,0.00037534,2]
[314008678,1707923479205,-16404.96,0.00037534,2]
[314008679,1707923479214,-5014.41,0.00037534,2]
[314008680,1707923479223,-2618.16,0.00037534,2]
[314008681,1707923479234,-1253.74,0.00037534,2]
[314008682,1707923479244,-1428.29,0.00037534,2]
[314008683,1707923479254,-12919.21,0.00037534,2]
[314008684,1707923479263,-500.0,0.00037534,2]
[314008685,1707923479274,-725.51,0.00037534,2]
[314008686,1707923479282,-500.0,0.00037534,2]
[314008687,1707923479292,-608.21,0.00037534,2]
[314008688,1707923479301,-670.32,0.00037534,2]
[314008689,1707923479310,-564.17,0.00037534,2]
[314008690,1707923479319,-3982.22,0.00037534,2]
[314008691,1707923479329,-500.0,0.00037534,2]
[314008692,1707923479338,-15886.12,0.00037534,2]
[314008693,1707923479347,-1912.2,0.00037534,2]
[314008694,1707923479356,-10000.0,0.00037534,2]
[314008695,1707923479365,-2293.57,0.00037534,2]
[314008696,1707923479375,-1078.52,0.00037534,2]
[314008697,1707923479385,-500.0,0.00037534,2]
[314008698,1707923479395,-1675.86,0.00037534,2]
[314008699,1707923479404,-4682.24,0.00037534,2]
[314008700,1707923479414,-1548.99,0.00037534,2]
[314008701,1707923479425,-998.25,0.00037534,2]
[314008702,1707923479434,-500.0,0.00037534,2]
[314008703,1707923479443,-2172.47,0.00037534,2]
[314008704,1707923479452,-10000.0,0.00037534,2]
[314008705,1707923479461,-1678.3,0.00037534,2]
[314008706,1707923479667,-500.0,0.00037534,2]
[314008707,1707923479677,-4636.94,0.00037534,2]
[314008708,1707923479686,-500.0,0.00037534,2]
[314008709,1707923479695,-905.58,0.00037534,2]
[314008710,1707923479705,-3347.59,0.00037534,2]
[314008711,1707923479715,-24853.72,0.00037534,2]
[314008712,1707923479725,-2682.03,0.00037534,2]
[314008713,1707923479735,-500.0,0.00037534,2]
[314008714,1707923479744,-500.0,0.00037534,2]
[314008715,1707923479755,-741.23,0.00037534,2]
[314008716,1707923479765,-500.0,0.00037534,2]
[314008717,1707923479775,-4661.42,0.00037534,2]
[314008718,1707923479784,-504.17,0.00037534,2]
[314008719,1707923479793,-644.02,0.00037534,2]
[314008720,1707923479802,-1447.91,0.00037534,2]
[314008721,1707923479812,-870.17,0.00037534,2]
[314008722,1707923479821,-6063.47,0.00037534,2]
[314008723,1707923479831,-575.73,0.00037534,2]
[314008724,1707923479840,-513.51,0.00037534,2]
[314008725,1707923479850,-500.0,0.00037534,2]
[314008726,1707923479859,-13772.64,0.00037534,2]
[314008727,1707923479869,-861.53,0.00037534,2]
[314008728,1707923479880,-734.67,0.00037534,2]
[314008729,1707923479889,-4015.51,0.00037534,2]
[314008730,1707923479898,-4963.65,0.00037534,2]
[314008731,1707923479907,-1647.66,0.00037534,2]
[314008732,1707923479916,-500.0,0.00037534,2]
[314008733,1707923479925,-834.17,0.00037534,2]
[314008734,1707923479935,-1651.62,0.00037534,2]
[314008735,1707923479945,-1367.71,0.00037534,2]
[314008736,1707923479954,-705.01,0.00037534,2]
[314008737,1707923479964,-738.43,0.00037534,2]
[314008738,1707923479973,-1232.76,0.00037534,2]
[314008739,1707923479985,-500.0,0.00037534,2]
[314008740,1707923479994,-1397.98,0.00037534,2]
[314008741,1707923480003,-1605.94,0.00037534,7]
[314008742,1707923480012,-2624.93,0.00037534,2]
[314008743,1707923480021,-3882.2,0.00037534,2]
[314008744,1707923480030,-6303.05,0.00037534,2]
[314008745,1707923480040,-1424.26,0.00037534,2]
[314008746,1707923480049,-6722.84,0.00037534,2]
[314008747,1707923480059,-6796.38,0.00037534,2]
[314008748,1707923480068,-500.0,0.00037534,2]
[314008749,1707923480078,-9115.46,0.00037534,2]
[314008750,1707923480087,-1430.04,0.00037534,2]
[314008751,1707923480097,-876.71,0.00037534,2]
[314008752,1707923480106,-500.0,0.00037534,2]
[314008753,1707923480115,-150.71067391,0.00037534,2]
[314008754,1707923480124,-1566.04,0.00037534,2]
[314008755,1707923480137,-1159.69,0.00037534,2]
[314008756,1707923480147,-5625.73,0.00037534,2]
[314008757,1707923480156,-742.15,0.00037534,2]
[314008758,1707923480166,-500.0,0.00037534,2]
[314008759,1707923480175,-1074.84,0.00037534,2]
[314008760,1707923480184,-500.0,0.00037534,2]
[314008761,1707923480194,-500.0,0.00037534,2]
[314008762,1707923480203,-21955.42,0.00037534,2]
[314008763,1707923480213,-10536.73,0.00037534,2]
[314008764,1707923480222,-1224.55,0.00037534,2]
[314008765,1707923480231,-3349.17,0.00037534,2]
[314008766,1707923480241,-1141.82,0.00037534,2]
[314008767,1707923480250,-4103.23,0.00037534,2]
[314008768,1707923480259,-15646.43,0.00037534,2]
[314008769,1707923480269,-500.0,0.00037534,2]
[314008770,1707923480278,-580.0,0.00037534,2]
[314008771,1707923480288,-500.0,0.00037534,2]
[314008772,1707923480297,-888.9,0.00037534,2]
[314008773,1707923480306,-849.7,0.00037534,2]
[314008774,1707923480316,-1131.16,0.00037534,2]
[314008775,1707923480325,-500.0,0.00037534,2]
[314008776,1707923480334,-500.0,0.00037534,2]
[314008777,1707923480345,-970.39,0.00037534,2]
[314008778,1707923480354,-2458.64,0.00037534,2]
[314008779,1707923480364,-1032.81,0.00037534,2]
[314008780,1707923480373,-940.22,0.00037534,2]
[314008781,1707923480386,-845.63,0.00037534,2]
[314008782,1707923480396,-655.93,0.00037534,2]
[314008783,1707923480406,-2020.71,0.00037534,2]
[314008784,1707923480415,-861.05,0.00037534,2]
[314008785,1707923480425,-1868.07,0.00037534,2]
[314008786,1707923480434,-4353.77,0.00037534,2]
[314008787,1707923480443,-500.0,0.00037534,2]
[314008788,1707923480453,-2136.24,0.00037534,2]
[314008789,1707923480462,-500.0,0.00037534,2]
[314008790,1707923480473,-3468.32,0.00037534,2]
[314008791,1707923480483,-1175.69,0.00037534,2]
[314008792,1707923480494,-4307.44,0.00037534,2]
[314008793,1707923480504,-290.8335617,0.00037534,2]
[314008794,1707923480513,-500.0,0.00037534,2]
[314008795,1707923480523,-457.13813726,0.00037534,2]
[314008796,1707923480534,-2131.96,0.00037534,2]
[314008797,1707923480545,-508.96461096,0.00037534,2]
[314008798,1707923480555,-4133.28,0.00037534,2]
[314008799,1707923480566,-1428.62,0.00037534,2]
[314008800,1707923480576,-500.0,0.00037534,2]
[314008801,1707923480586,-3754.14,0.00037534,7]
[314008802,1707923480596,-551.94,0.00037534,2]
[314008803,1707923480607,-2643.73,0.00037534,2]
[314008804,1707923480617,-1200.28,0.00037534,2]
[314008805,1707923480628,-1293.93,0.00037534,2]
[314008806,1707923480640,-500.0,0.00037534,2]
[314008807,1707923480650,-4255.94,0.00037534,2]
[314008808,1707923480659,-500.0,0.00037534,2]
[314008809,1707923480668,-500.0,0.00037534,2]
[314008810,1707923480678,-1073.43,0.00037534,2]
[314008811,1707923480689,-1154.7,0.00037534,2]
[314008812,1707923480698,-500.0,0.00037534,2]
[314008813,1707923480707,-749.27,0.00037534,2]
[314008814,1707923480717,-1681.08,0.00037534,2]
[314008815,1707923480726,-696.07,0.00037534,2]
[314008816,1707923480736,-1960.66,0.00037534,2]
[314008817,1707923480745,-1992.67,0.00037534,2]
[314008818,1707923480756,-4598.11,0.00037534,2]
[314008819,1707923480766,-2148.61,0.00037534,2]
[314008820,1707923480775,-625.36135695,0.00037534,2]
[314008821,1707923480786,-776.5,0.00037534,2]
[314008822,1707923480796,-876.47,0.00037534,2]
[314008823,1707923480805,-500.0,0.00037534,2]
[314008824,1707923480815,-907.63,0.00037534,2]
[314008825,1707923480824,-1863.83,0.00037534,2]
[314008826,1707923480834,-759.83,0.00037534,2]
[314008827,1707923480843,-2233.48,0.00037534,2]
[314008828,1707923480853,-22229.37,0.00037534,2]
[314008829,1707923480862,-2807.7,0.00037534,2]
[314008830,1707923480872,-1407.78,0.00037534,2]
[314008831,1707923480885,-500.0,0.00037534,2]
[314008832,1707923480895,-4409.87,0.00037534,2]
[314008833,1707923480904,-749.48,0.00037534,2]
[314008834,1707923480913,-770.43,0.00037534,2]
[314008835,1707923480923,-500.0,0.00037534,2]
[314008836,1707923480932,-940.66,0.00037534,2]
[314008837,1707923480941,-778.24,0.00037534,2]
[314008838,1707923480951,-1582.96,0.00037534,2]
[314008839,1707923480962,-819.98,0.00037534,2]
[314008840,1707923480972,-500.0,0.00037534,2]
[314008841,1707923480985,-501.61,0.00037534,2]
[314008842,1707923480995,-1689.02,0.00037534,2]
[314008843,1707923481005,-250.0,0.00037542,2]
[314008844,1707923481015,-250.0,0.00037542,2]
[314008845,1707923481025,-233.893,0.00037542,2]
[314008846,1707923481034,-155.0,0.00037542,2]
[314008847,1707923481044,-202.0,0.00037542,2]
[314008848,1707923481054,-158.0,0.00037542,2]
[314008849,1707923481065,-158.325,0.00037542,2]
[314008850,1707923481074,-150.273,0.00037542,2]
[314008851,1707923481084,-244.784,0.00037542,2]
[314008852,1707923481094,-151.697,0.00037542,2]
[314008853,1707923481103,-200.0,0.00037542,2]
[314008854,1707923481113,-155.778,0.00037542,2]
[314008855,1707923481122,-226.244,0.00037542,2]
[314008856,1707923481135,-151.645,0.00037542,2]
[314008857,1707923481145,-250.0,0.00037542,2]
[314008858,1707923481155,-150.0,0.00037549,2]
[314008859,1707923481165,-150.0,0.00037549,2]
[314008860,1707923481175,-11029.33081959,0.0003755,2]
[314008861,1707923481184,-150.9,0.00037573,2]
[314008862,1707923481194,-150.0,0.00037587,2]
[314008863,1707923481204,-2833.0,0.00037598,2]
[314008864,1707923481213,-1371.354,0.00037598,2]
[314008865,1707923481223,-397.0,0.00037598,2]
[314008866,1707923481232,-150.0,0.00037598,2]
[314008867,1707923481242,-1112.24,0.000376,3]
[314008868,1707923481251,-1112.24,0.000376,3]
[314008869,1707923481261,-1112.24,0.000376,3]
[314008870,1707923481272,-1112.24,0.000376,3]
[314008871,1707923481282,-1112.24,0.000376,3]
[314008872,1707923481293,-1112.24,0.000376,3]
[314008873,1707923481303,-1112.24,0.000376,3]
[314008874,1707923481313,-1112.24,0.000376,3]
[314008875,1707923481322,-1112.24,0.000376,3]
[314008876,1707923481332,-1112.24,0.000376,3]
[314008877,1707923481341,-1112.24,0.000376,3]
[314008878,1707923481350,-1112.24,0.000376,3]
[314008879,1707923481360,-1112.24,0.000376,3]
[314008880,1707923481369,-1112.24,0.000376,3]
[314008881,1707923481383,-1112.24,0.000376,3]
[314008882,1707923481393,-1112.24,0.000376,3]
[314008883,1707923481403,-1112.24,0.000376,3]
[314008884,1707923481412,-1112.24,0.000376,3]
[314008885,1707923481423,-1112.24,0.000376,3]
[314008886,1707923481432,-1112.24,0.000376,3]
[314008887,1707923481442,-150.0,0.00037603,2]
[314008888,1707923481452,-500.0,0.0003763,2]
[314008889,1707923481461,-500.0,0.0003763,2]
[314008890,1707923481470,-500.0,0.0003763,2]
[314008891,1707923481479,-500.0,0.0003763,2]
[314008892,1707923481489,-500.0,0.0003763,2]
[314008893,1707923481498,-500.0,0.0003763,2]
[314008894,1707923481508,-500.0,0.0003763,2]
[314008895,1707923481517,-500.0,0.0003763,2]
[314008896,1707923481527,-500.0,0.0003763,2]
[314008897,1707923481536,-500.0,0.0003763,2]
[314008898,1707923481546,-500.0,0.0003763,2]
[314008899,1707923481555,-500.0,0.0003763,2]
[314008900,1707923481565,-500.0,0.0003763,2]
[314008901,1707923481575,-500.0,0.0003763,2]
[314008902,1707923481585,-500.0,0.0003763,2]
[314008903,1707923481594,-500.0,0.0003763,2]
[314008904,1707923481604,-500.0,0.0003763,2]
[314008905,1707923481614,-500.0,0.0003763,2]
[314008906,1707923481623,-500.0,0.0003763,2]
[314008907,1707923481638,-500.0,0.0003763,2]
[314008908,1707923481648,-500.0,0.0003763,2]
[314008909,1707923481657,-1426.56387545,0.00037634,2]
[314008910,1707923481667,-520.0864881,0.00037644,2]
[314008911,1707923481676,-804.0,0.00037656,2]
[314008912,1707923481686,-300.0,0.00037662,2]
[314008913,1707923481695,-150.0,0.00037662,2]
[314008914,1707923481705,-249.504447,0.00037687,3]
[314008915,1707923481715,-1204.74,0.000377,3]
[314008916,1707923481724,-152.96651372,0.00037701,2]
[314008917,1707923481734,-388.58831174,0.00037708,8]
[314008918,1707923481743,-7596.31578223,0.00037708,11]
[314008919,1707923481753,-575.9574862,0.00037708,28]
[314008920,1707923481762,-664.90313922,0.00037709,2]
[314008921,1707923481771,-800.0,0.00037777,5]
[314008922,1707923481781,-200.0,0.00037777,10]
[314008923,1707923481790,-166143.132505,0.00037782,2]
[314008924,1707923481800,-5346.9706237,0.00037782,2]
[314008925,1707923481809,-500.0,0.00037786,3]
[314008926,1707923481819,-500.0,0.00037795,3]
[314008927,1707923481828,-353.0,0.000378,2]
[314008928,1707923481837,-5007.72,0.000378,2]
[314008929,1707923481846,-353.108016,0.000378,25]
[314008930,1707923481855,-2438.36514511,0.000378,2]
[314008931,1707923481865,-1000.0,0.000378,2]
[314008932,1707923481875,-500.0,0.00037804,3]
[314008933,1707923481887,-500.0,0.00037807,2]
[314008934,1707923481896,-500.0,0.00037807,2]
[314008935,1707923481905,-500.0,0.00037807,2]
[314008936,1707923481914,-565.53227197,0.00037807,2]
[314008937,1707923481923,-150.0,0.00037807,2]
[314008938,1707923481932,-150.0,0.00037807,2]
[314008939,1707923481941,-500.0,0.00037808,2]
[314008940,1707923481951,-250.0,0.00037808,2]
[314008941,1707923481961,-500.0,0.00037808,2]
[314008942,1707923481970,-500.0,0.00037808,2]
[314008943,1707923481983,-500.0,0.00037808,2]
[314008944,1707923481993,-500.0,0.00037808,2]
[314008945,1707923482003,-500.0,0.00037808,2]
[314008946,1707923482013,-500.0,0.00037808,2]
[314008947,1707923482023,-500.0,0.00037808,2]
[314008948,1707923482032,-500.0,0.00037808,2]
[314008949,1707923482041,-500.0,0.00037808,2]
[314008950,1707923482051,-500.0,0.00037808,2]
[314008951,1707923482060,-500.0,0.00037808,2]
[314008952,1707923482069,-636.47,0.00037808,2]
[314008953,1707923482079,-500.0,0.00037808,2]
[314008954,1707923482088,-500.0,0.00037808,2]
[314008955,1707923482098,-500.0,0.00037808,2]
[314008956,1707923482107,-516.5635512,0.00037808,2]
[314008957,1707923482116,-500.0,0.00037808,2]
[314008958,1707923482126,-500.0,0.00037808,2]
[314008959,1707923482139,-500.0,0.00037808,2]
[314008960,1707923482148,-500.0,0.00037808,2]
[314008961,1707923482157,-500.0,0.00037808,2]
[314008962,1707923482166,-500.0,0.00037808,2]
[314008963,1707923482176,-318.80256875,0.00037808,2]
[314008964,1707923482186,-500.0,0.00037808,2]
[314008965,1707923482195,-500.0,0.00037808,2]
[314008966,1707923482205,-500.0,0.00037808,2]
[314008967,1707923482214,-500.0,0.00037808,2]
[314008968,1707923482224,-500.0,0.00037808,2]
[314008969,1707923482234,-500.0,0.00037808,2]
[314008970,1707923482243,-500.0,0.00037808,2]
[314008971,1707923482252,-500.0,0.00037808,2]
[314008972,1707923482262,-500.0,0.00037808,2]
[314008973,1707923482272,-536.83,0.00037808,2]
[314008974,1707923482282,-500.0,0.00037808,2]
[314008975,1707923482291,-500.0,0.00037808,2]
[314008976,1707923482301,-500.0,0.00037808,2]
[314008977,1707923482311,-500.0,0.00037808,2]
[314008978,1707923482321,-500.0,0.00037808,2]
[314008979,1707923482331,-511.55,0.00037808,2]
[314008980,1707923482341,-500.0,0.00037808,2]
[314008981,1707923482350,-500.0,0.00037808,2]
[314008982,1707923482360,-564.0,0.00037808,2]
[314008983,1707923482369,-500.0,0.00037808,2]
[314008984,1707923482381,-500.0,0.00037808,2]
[314008985,1707923482391,-500.0,0.00037808,2]
[314008986,1707923482401,-296.26627154,0.00037808,2]
[314008987,1707923482410,-1240.83,0.00037808,2]
[314008988,1707923482419,-500.0,0.00037808,2]
[314008989,1707923482428,-1171.11,0.00037808,2]
[314008990,1707923482438,-564.08,0.00037808,2]
[314008991,1707923482448,-1281.17,0.00037808,2]
[314008992,1707923482459,-1147.23,0.00037808,2]
[314008993,1707923482468,-500.0,0.00037808,2]
[314008994,1707923482478,-568.35,0.00037808,2]
[314008995,1707923482487,-1433.14,0.00037808,2]
[314008996,1707923482496,-500.0,0.00037808,2]
[314008997,1707923482505,-453.05367639,0.00037808,2]
[314008998,1707923482514,-500.0,0.00037808,2]
[314008999,1707923482524,-500.0,0.00037808,2]
[314009000,1707923482533,-500.0,0.00037808,2]
[314009001,1707923482542,-530.02,0.00037808,2]
[314009002,1707923482551,-528.29,0.00037808,2]
[314009003,1707923482562,-1489.83,0.00037808,2]
[314009004,1707923482572,-500.0,0.00037808,2]
[314009005,1707923482750,-1024.97,0.00037808,2]
[314009006,1707923482759,-500.0,0.00037808,2]
[314009007,1707923482769,-500.0,0.00037808,2]
[314009008,1707923482778,-500.0,0.00037808,2]
[314009009,1707923482787,-500.0,0.00037808,2]
[314009010,1707923482796,-500.0,0.00037808,2]
[314009011,1707923482805,-569.56,0.00037808,2]
[314009012,1707923482814,-500.0,0.00037808,2]
[314009013,1707923482823,-500.0,0.00037808,2]
[314009014,1707923482832,-1152.13,0.00037808,2]
[314009015,1707923482841,-785.09,0.00037808,2]
[314009016,1707923482850,-500.0,0.00037808,2]
[314009017,1707923482859,-1376.22,0.00037808,2]
[314009018,1707923482868,-500.0,0.00037808,2]
[314009019,1707923482880,-770.95,0.00037808,2]
[314009020,1707923482890,-500.0,0.00037808,2]
[314009021,1707923482899,-1599.92,0.00037808,2]
[314009022,1707923482908,-1153.23,0.00037808,2]
[314009023,1707923482918,-500.0,0.00037808,2]
[314009024,1707923482927,-1045.09,0.00037808,2]
[314009025,1707923482936,-774.56,0.00037808,2]
[314009026,1707923482945,-1031.35,0.00037808,2]
[314009027,1707923482955,-548.76,0.00037808,2]
[314009028,1707923482964,-500.0,0.00037808,2]
[314009029,1707923482988,-500.0,0.00037808,2]
[314009030,1707923482998,-661.87,0.00037808,2]
[314009031,1707923483009,-584.37,0.00037808,2]
[314009032,1707923483019,-500.0,0.00037808,2]
[314009033,1707923483037,-500.0,0.00037808,2]
[314009034,1707923483047,-520.1,0.00037808,2]
[314009035,1707923483057,-1604.0,0.00037808,2]
[314009036,1707923483067,-943.16,0.00037808,2]
[314009037,1707923483077,-500.0,0.00037808,2]
[314009038,1707923483087,-500.0,0.00037808,2]
[314009039,1707923483096,-500.0,0.00037808,2]
[314009040,1707923483106,-704.7,0.00037808,2]
[314009041,1707923483115,-644.22,0.00037808,2]
[314009042,1707923483125,-500.0,0.00037808,2]
[314009043,1707923483137,-1136.26,0.00037808,2]
[314009044,1707923483147,-1264.92,0.00037808,2]
[314009045,1707923483157,-812.61,0.00037808,2]
[314009046,1707923483166,-570.14,0.00037808,2]
[314009047,1707923483176,-500.0,0.00037808,2]
[314009048,1707923483186,-500.0,0.00037808,2]
[314009049,1707923483196,-553.03,0.00037808,2]
[314009050,1707923483205,-519.06,0.00037808,2]
[314009051,1707923483215,-500.0,0.00037808,2]
[314009052,1707923483226,-1130.05,0.00037808,2]
[314009053,1707923483235,-733.41,0.00037808,2]
[314009054,1707923483245,-500.0,0.00037808,2]
[314009055,1707923483254,-674.48,0.00037808,2]
[314009056,1707923483264,-500.0,0.00037808,2]
[314009057,1707923483274,-500.0,0.00037808,2]
[314009058,1707923483283,-599.48,0.00037808,2]
[314009059,1707923483293,-699.45,0.00037808,2]
[314009060,1707923483304,-647.83,0.00037808,2]
[314009061,1707923483314,-808.31,0.00037808,2]
[314009062,1707923483325,-500.0,0.00037808,2]
[314009063,1707923483336,-327.39768246,0.00037808,2]
[314009064,1707923483346,-500.0,0.00037808,2]
[314009065,1707923483357,-1377.65,0.00037808,2]
[314009066,1707923483367,-734.76,0.00037808,2]
[314009067,1707923483376,-1574.35,0.00037808,2]
[314009068,1707923483388,-500.0,0.00037808,2]
[314009069,1707923483399,-1145.4,0.00037808,2]
[314009070,1707923483408,-1361.9,0.00037808,2]
[314009071,1707923483418,-500.0,0.00037808,2]
[314009072,1707923483429,-500.0,0.00037808,2]
[314009073,1707923483439,-500.0,0.00037808,2]
[314009074,1707923483449,-500.0,0.00037808,2]
[314009075,1707923483459,-500.0,0.00037808,2]
[314009076,1707923483469,-1000.98,0.00037808,2]
[314009077,1707923483479,-940.65,0.00037808,2]
[314009078,1707923483488,-819.39,0.00037808,2]
[314009079,1707923483498,-664.33,0.00037808,2]
[314009080,1707923483507,-500.0,0.00037808,2]
[314009081,1707923483517,-500.0,0.00037808,2]
[314009082,1707923483527,-500.0,0.00037808,2]
[314009083,1707923483537,-500.0,0.00037808,2]
[314009084,1707923483547,-574.43,0.00037808,2]
[314009085,1707923483557,-582.92,0.00037808,2]
[314009086,1707923483567,-500.0,0.00037808,2]
[314009087,1707923483577,-709.41,0.00037808,2]
[314009088,1707923483587,-523.78,0.00037808,2]
[314009089,1707923483596,-629.64,0.00037808,2]
[314009090,1707923483608,-584.12,0.00037808,2]
[314009091,1707923483619,-500.0,0.00037808,2]
[314009092,1707923483630,-549.4,0.00037808,2]
[314009093,1707923483642,-500.0,0.00037808,2]
[314009094,1707923483651,-1007.67,0.00037808,2]
[314009095,1707923483661,-2090.09,0.00037808,2]
[314009096,1707923483670,-964.24,0.00037808,2]
[314009097,1707923483679,-500.0,0.00037808,2]
[314009098,1707923483689,-500.0,0.00037808,2]
[314009099,1707923483698,-633.52,0.00037808,2]
[314009100,1707923483708,-500.0,0.00037808,2]
[314009101,1707923483717,-500.0,0.00037808,2]
[314009102,1707923483726,-500.0,0.00037808,2]
[314009103,1707923483735,-1464.25,0.00037808,2]
[314009104,1707923483745,-547.73,0.00037808,2]
[314009105,1707923483754,-760.6,0.00037808,2]
[314009106,1707923483763,-1470.37,0.00037808,2]
[314009107,1707923483773,-500.0,0.00037808,2]
[314009108,1707923483783,-608.25,0.00037808,2]
[314009109,1707923483792,-500.0,0.00037808,2]
[314009110,1707923483802,-1725.04,0.00037808,2]
[314009111,1707923483811,-554.39,0.00037808,2]
[314009112,1707923483821,-500.0,0.00037808,2]
[314009113,1707923483830,-500.0,0.00037808,2]
[314009114,1707923483840,-500.0,0.00037808,2]
[314009115,1707923483849,-1351.58,0.00037808,2]
[314009116,1707923483861,-500.0,0.00037808,2]
[314009117,1707923483871,-638.35,0.00037808,2]
[314009118,1707923483884,-500.0,0.00037808,2]
[314009119,1707923483894,-500.0,0.00037808,2]
[314009120,1707923483904,-500.0,0.00037808,2]
[314009121,1707923483913,-500.0,0.00037808,2]
[314009122,1707923483922,-855.82,0.00037808,2]
[314009123,1707923483931,-619.45,0.00037808,2]
[314009124,1707923483940,-974.92,0.00037808,2]
[314009125,1707923483950,-500.0,0.00037808,2]
[314009126,1707923483962,-500.0,0.00037808,2]
[314009127,1707923483974,-500.0,0.00037808,2]
[314009128,1707923483983,-1157.75,0.00037808,2]
[314009129,1707923483993,-896.42,0.00037808,2]
[314009130,1707923484002,-500.0,0.00037808,2]
[314009131,1707923484013,-500.0,0.00037808,2]
[314009132,1707923484022,-500.0,0.00037808,2]
[314009133,1707923484033,-500.0,0.00037808,2]
[314009134,1707923484045,-500.0,0.00037808,2]